Cogmind - Beta 11 @@@ ROGUE MODE // 2022.03.25 @ 06:25:23 Player: Wyvric Result: Destroyed by Enhanced Grunt with Neutron Cannon Performance ------------- Evolutions (3) 1500 Regions Visited (9) 1800 Robots Destroyed (35) 175 Value Destroyed (1089) 1089 Prototype IDs (216) 4320 Alien Tech Used (0) 0 Bonus (3565) 3565 TOTAL SCORE: 12449 Bonus ------- Follower Combat Kills 275 Met Data Miner 300 Used Data Conduit 3000 Friendly Fire -10 Cogmind --------- Core Integrity 0/700 Matter 265/300 Energy 98/100 System Corruption 0% Temperature Cool (0) Movement Core (50) Location -7/Data Miner Parts ------- > --- POWER (1) -------- (None) > --- PROPULSION (4) --- (None) > --- UTILITY (6) ------ Advanced Terrain Scan Processor Improved Targeting Computer > --- WEAPON (2) ------- (None) > --- INVENTORY (5) ---- Huge Storage Unit Improved Terrain Scanner Decoy Drone Bay Precision Beam Rifle Peak State ------------ > --- POWER ------------ Light Deuterium Engine > --- PROPULSION ------- Armored Treads Advanced Treads Aluminum Leg Titanium Leg > --- UTILITY ---------- High-capacity Storage Unit Advanced Terrain Scan Processor Targeting Computer Core Analyzer Hardened Medium Armor Plating Hardened Medium Armor Plating > --- WEAPON ----------- Precision Beam Rifle Precision Beam Rifle > --- INVENTORY -------- Light Nuclear Core Armored Treads Wheel Wheel Huge Storage Unit Improved Terrain Scanner Microactuators Dynamic Insulation System Decoy Drone Bay Precision Beam Rifle Precision Beam Rifle Precision Beam Rifle Autogun High-powered Shotgun High-powered Shotgun Spear Dirty Bomb Trap Fire Trap Fire Trap [Rating: 43] Favorites ----------- Power Improved Ion Engine Engine Improved Ion Engine Power Core Neutrino Core Propulsion Aluminum Leg Treads Armored Treads Leg Aluminum Leg Wheel Wheel Hover Unit Aerolev Unit Utility Targeting Computer Device Improved Terrain Scanner Storage High-capacity Storage Unit Processor Targeting Computer Hackware Hacking Suite Protection Hardened Medium Armor Plating Weapon High-powered Shotgun Energy Gun EM Shotgun Ballistic Gun High-powered Shotgun Launcher EMP Blaster Impact Weapon Hammer Build | -11 -10 -10 -10 -9 -8 -7 -7 -7 -7 ------- Run | Scr Mat Min Exi Min Mat Fac Low Low Dat Slots Evolved 6 | . . . . . 4 2 . . . Power . | . . . . . . . . . . Propulsion 2 | . . . . . 2 . . . . Utility 4 | . . . . . 2 2 . . . Weapon . | . . . . . . . . . . Parts Attached 90 | 6 8 4 3 2 13 7 14 24 9 Power 5 | 1 . 1 . . . 1 1 1 . Engine 4 | 1 . 1 . . . 1 1 . . Core 1 | . . . . . . . . 1 . Reactor . | . . . . . . . . . . Propulsion 37 | 2 4 . . . 3 2 5 13 8 Treads 12 | 2 2 . . . 1 2 3 1 1 Leg 13 | . 2 . . . 1 . 1 5 4 Wheel 11 | . . . . . . . 1 7 3 Hover 1 | . . . . . 1 . . . . Flight . | . . . . . . . . . . Utility 27 | 1 2 1 3 1 6 2 4 6 1 Device 7 | . 1 . . . . 2 1 3 . Storage 5 | 1 . . 3 . 1 . . . . Processor 4 | . . . . 1 . . 1 2 . Hackware 1 | . . . . . 1 . . . . Protection 10 | . 1 1 . . 4 . 2 1 1 Artifact . | . . . . . . . . . . Weapon 21 | 2 2 2 . 1 4 2 4 4 . Energy Gun 13 | 2 1 . . 1 4 1 2 2 . Energy Cannon . | . . . . . . . . . . Ballistic Gun 6 | . 1 1 . . . . 2 2 . Ballistic Cannon . | . . . . . . . . . . Launcher 1 | . . . . . . 1 . . . Special Weapon . | . . . . . . . . . . Impact Weapon 1 | . . 1 . . . . . . . Slashing Weapon . | . . . . . . . . . . Piercing Weapon . | . . . . . . . . . . Special Melee Weapon . | . . . . . . . . . . Unidentified Prototypes 2 | . . . . . 2 . . . . Parts Lost 22 | . 3 . . . 1 4 4 1 9 Power 1 | . . . . . . . 1 . . Propulsion 7 | . . . . . . 2 . . 5 Utility 7 | . 1 . . . 1 . 1 1 3 Weapon 7 | . 2 . . . . 2 2 . 1 Highest Loss Streak 9 | . 2 . . . 1 4 4 1 9 To Critical Strikes . | . . . . . . . . . . Average Slot Usage (%) 98 | . 96 99 100 100 98 95 97 99 96 Engine 8 | . 14 14 14 14 9 7 6 4 . Treads 10 | . 22 . . . 6 15 19 14 5 Leg 13 | . 5 28 28 28 26 12 1 1 11 Wheel 4 | . . . . . . . 6 14 11 Device 4 | . 10 . . . . 13 6 6 6 Storage 9 | . 14 14 14 14 9 7 7 7 6 Processor 11 | . . . . 11 9 7 14 22 22 Hackware 2 | . . . . . 1 7 7 . . Protection 8 | . 1 13 14 2 16 7 7 7 7 Energy Gun 6 | . 22 . . 14 17 10 . 2 . Ballistic Gun 11 | . 4 26 14 14 . . 14 12 14 Impact Weapon 1 | . . . 14 . . . . . . Naked Turns . | . . . . . . . . . . Heaviest Build 76 | 13 15 19 34 34 59 63 68 69 76 Greatest Support 62 | 40 40 20 20 20 30 62 42 42 47 Greatest Overweight (x) 6 | 3 . . 1 1 2 1 5 5 6 Average Overweight (x) 1 | 1 . . . 1 1 . 4 2 2 Largest Inventory Capacity 20 | 8 8 8 20 15 20 20 20 20 20 Average Capacity 16 | 7 8 8 13 15 19 20 20 20 19 Most Carried 20 | 8 8 8 12 15 20 20 20 20 20 Average Carried 15 | 5 7 7 8 13 18 20 18 19 18 Final Capacity 20 | 8 8 8 15 15 20 20 20 20 5 Final Carried 20 | 6 7 8 12 15 20 20 20 20 5 Class Distribution -------------------- 83% | Mutant 11% | Scavenger-Mutant 5% | Derelict-Mutant Dominant Class ---------------- Mutant | -10/Materials Mutant | -10/Mines Mutant | -10/Exiles Mutant | -9/Mines Scavenger-Mutant | -8/Materials Mutant | -7/Factory Mutant | -7/Lower Caves Mutant | -7/Lower Caves Derelict-Mutant | -7/Data Miner Resources | -11 -10 -10 -10 -9 -8 -7 -7 -7 -7 ----------- Run | Scr Mat Min Exi Min Mat Fac Low Low Dat Matter Collected 1519 | 240 58 152 130 49 133 70 388 299 . Remotely . | . . . . . . . . . . Salvage Created 1523 | . 317 97 . 12 442 168 277 210 . Parts 90 | . 18 9 . 1 24 13 13 12 . Haulers Intercepted 1 | . . . . . 1 . . . . Recyclers Shooed . | . . . . . . . . . . Parts Field Recycled . | . . . . . . . . . . Retrieved Matter . | . . . . . . . . . . Parts Self-Destructed 17 | . . . . . . . 8 9 . Prevented 6 | . . . . . . . 6 . . Kills | -11 -10 -10 -10 -9 -8 -7 -7 -7 -7 ------- Run | Scr Mat Min Exi Min Mat Fac Low Low Dat Combat Hostiles Destroyed 28 | . 8 4 . 1 6 2 3 4 . Guns 27 | . 8 4 . 1 6 1 3 4 . Classes Destroyed 12 | . 3 1 . . 2 3 2 1 . Worker 2 | . 1 . . . 1 . . . . Tunneler 1 | . . . . . . 1 . . . Hauler 1 | . . . . . 1 . . . . Minesweeper 1 | . . . . . . . 1 . . Operator 1 | . . . . . . 1 . . . Watcher 1 | . . . . . 1 . . . . Swarmer 10 | . 3 3 . 1 . . 3 . . Grunt 9 | . 5 . . . 3 . . 1 . Sentry 6 | . . 1 . . 3 1 . 1 . Hunter 2 | . . . . . . 1 . 1 . Programmer 1 | . . . . . . . . 1 . Decomposer 6 | . . . . . . . 4 2 . Samaritan 3 | . . . . . . . 3 . . Best Kill Streak 4 | . 4 2 . 1 4 2 3 2 . Combat Bots Only 3 | . 3 2 . 1 2 1 3 2 . Max Kills in Single Turn 2 | . 1 1 . 1 2 1 2 1 . Gunslinging 1 | . . . . . . . 1 . . Exploded . | . . . . . . . . . . Melee . | . . . . . . . . . . Uniques/NPCs Destroyed . | . . . . . . . . . . Combat | -11 -10 -10 -10 -9 -8 -7 -7 -7 -7 -------- Run | Scr Mat Min Exi Min Mat Fac Low Low Dat Damage Taken 4197 | . 442 115 . 64 253 873 571 337 1542 Core 877 | . 51 41 . 26 15 85 103 . 556 Absorbed by Shields . | . . . . . . . . . . Redirected to Shielding 47 | . . 7 . . . 19 21 . . Core Remaining (%) 83 | 100 . . . 52 97 . . . . Volleys Fired 119 | . 31 10 . 2 16 14 36 10 . Largest 2 | . 2 2 . 2 2 2 2 2 . Hottest 122 | . 80 70 . 70 90 90 90 122 . Shots Fired 218 | . 55 20 . 5 32 16 70 20 . Gun 206 | . 55 20 . 5 32 4 70 20 . Cannon . | . . . . . . . . . . Launcher 12 | . . . . . . 12 . . . Special . | . . . . . . . . . . Kinetic 111 | . 16 16 . 3 . . 60 16 . Thermal 25 | . 15 4 . 2 . . . 4 . Explosive . | . . . . . . . . . . Electromagnetic 82 | . 24 . . . 32 16 10 . . Robot Hit Streak 17 | . 17 6 . 6 6 3 6 9 . Robot Miss Streak 7 | . 3 3 . 2 4 1 7 3 . Penetration Max . | . . . . . . . . . . Secondary Targets 1 | . . . . . . . 1 . . Max Gunslinging Chain 1 | . . . . . . . 1 . . Shots Hit Robots 159 | . 37 12 . 2 28 10 56 14 . Core Hits 89 | . 16 5 . 2 21 10 25 10 . Critical Kills . | . . . . . . . . . . Critical Parts Destroyed . | . . . . . . . . . . Critical Strikes . | . . . . . . . . . . Melee Attacks 4 | . . 4 . . . . . . . Impact 4 | . . 4 . . . . . . . Slashing . | . . . . . . . . . . Piercing . | . . . . . . . . . . Sneak Attacks . | . . . . . . . . . . Combat Hostiles . | . . . . . . . . . . Follow-up Attacks . | . . . . . . . . . . Damage Inflicted 2681 | . 486 146 . 57 485 283 939 271 14 Guns 2386 | . 486 146 . 50 431 63 939 271 . Cannons . | . . . . . . . . . . Explosions 274 | . . . . . 54 220 . . . Melee . | . . . . . . . . . . Ramming 21 | . . . . 7 . . . . 14 Kinetic 1312 | . 121 108 . 25 . . 835 223 . Thermal 289 | . 124 38 . 25 54 . . 48 . Explosive . | . . . . . . . . . . Electromagnetic 1059 | . 241 . . . 431 283 104 . . Impact . | . . . . . . . . . . Slashing . | . . . . . . . . . . Piercing . | . . . . . . . . . . Highest Corruption 3 | . 3 3 3 3 . . . . . Average Corruption 2 | . 2 3 3 3 . . . . . Corruption Purged . | . . . . . . . . . . Corruption Blocked . | . . . . . . . . . . Effects 57 | . 5 22 14 16 . . . . . Message Errors 22 | . 2 8 5 7 . . . . . Matter Fused 11 | . . 4 4 3 . . . . . Heat Flow Errors 7 | . 1 3 2 1 . . . . . Energy Discharges 6 | . 1 3 1 1 . . . . . Parts Rejected 1 | . 1 . . . . . . . . Data Loss (minor) 7 | . . 3 2 2 . . . . . Data Loss (major) 1 | . . . . 1 . . . . . Misfires 1 | . . . . 1 . . . . . Alerts 1 | . . 1 . . . . . . . Overload Shots . | . . . . . . . . . . Overflow Damage . | . . . . . . . . . . Projectiles . | . . . . . . . . . . Explosions . | . . . . . . . . . . Melee . | . . . . . . . . . . Knockbacks . | . . . . . . . . . . Impact . | . . . . . . . . . . Kinetic . | . . . . . . . . . . Secondary . | . . . . . . . . . . Self-Inflicted Damage 23 | . . . . . 19 4 . . . Shots 2 | . . . . . 1 1 . . . Rammed . | . . . . . . . . . . Targets Rammed 5 | . . . . 2 . . . . 3 Kicked 5 | . . . . 2 . . . . 3 Crushed . | . . . . . . . . . . Highest Temperature 219 | . 167 219 142 175 117 48 93 107 . Average Temperature 63 | . 91 74 67 64 39 15 47 54 . Received Heat Transfer 609 | . 204 9 . . 117 243 . 36 . Siege Activations . | . . . . . . . . . . Robots Corrupted 1 | . . . . . . 1 . . . Combat Hostiles 1 | . . . . . . 1 . . . Parts Fried 3 | . . . . . 1 2 . . . Impact Corruptions . | . . . . . . . . . . Robots Melted . | . . . . . . . . . . Combat Hostiles . | . . . . . . . . . . Parts Melted . | . . . . . . . . . . Heat Transferred 596 | . 300 111 . 74 . . . 111 . Parts Sabotaged . | . . . . . . . . . . Parts Stolen . | . . . . . . . . . . Parts Stripped . | . . . . . . . . . . Power Chain Reactions 1 | . . . . . 1 . . . . Missiles Intercepted . | . . . . . . . . . . Alert | -11 -10 -10 -10 -9 -8 -7 -7 -7 -7 ------- Run | Scr Mat Min Exi Min Mat Fac Low Low Dat Peak Influence 348 | . 124 348 . 131 193 137 . . . Initial 36 | . . 36 . . . . . . . Average 72 | . 46 189 . 29 55 44 . . . Maximum Alert Level 1 | . . 1 . . . . . . . Low Security (%) 93 | 100 100 67 . 100 100 100 . . . Level 1 6 | . . 32 . . . . . . . Level 2 . | . . . . . . . . . . Level 3 . | . . . . . . . . . . Level 4 . | . . . . . . . . . . Level 5 . | . . . . . . . . . . High Security . | . . . . . . . . . . Max Security . | . . . . . . . . . . Squads Dispatched 5 | . 2 . . . 1 2 . . . Investigation . | . . . . . . . . . . Extermination . | . . . . . . . . . . Reinforcement 5 | . 2 . . . 1 2 . . . Assault . | . . . . . . . . . . Garrison . | . . . . . . . . . . Intercept . | . . . . . . . . . . Searches Triggered . | . . . . . . . . . . Construction Impeded 1 | . . . . . . 1 . . . Haulers Reinforced . | . . . . . . . . . . Active Scanning Responses . | . . . . . . . . . . Cargo Convoy Interrupts . | . . . . . . . . . . Stealth | -11 -10 -10 -10 -9 -8 -7 -7 -7 -7 --------- Run | Scr Mat Min Exi Min Mat Fac Low Low Dat Distress Signals 1 | . . . . . 1 . . . . Communications Jammed . | . . . . . . . . . . Distress Signals . | . . . . . . . . . . Times Spotted 72 | . 13 13 . 4 19 10 4 5 4 Peak Tracking Total 4 | . 3 4 . 3 4 4 4 3 4 Tactical Retreats 2 | . 1 1 . . . . . . . Traps | -11 -10 -10 -10 -9 -8 -7 -7 -7 -7 ------- Run | Scr Mat Min Exi Min Mat Fac Low Low Dat Traps Triggered 5 | . 4 . . . . 1 . . . Indirectly 1 | . . . . . . 1 . . . Trap Hack Attempts . | . . . . . . . . . . Triggered . | . . . . . . . . . . Disarmed . | . . . . . . . . . . Reprogrammed . | . . . . . . . . . . Reused 2 | . . . . . . . . 1 1 Traps Extracted . | . . . . . . . . . . Installed 6 | . . . . . . . . 1 5 Triggered 3 | . . . . . . . . 3 . Most Traps Carried 5 | . . . . . . . 3 5 5 Machines | -11 -10 -10 -10 -9 -8 -7 -7 -7 -7 ---------- Run | Scr Mat Min Exi Min Mat Fac Low Low Dat Machines Disabled 3 | . . 1 . . . 2 . . . Max in Single Turn 1 | . . . . . . 1 . . . Machines Sabotaged . | . . . . . . . . . . Garrisons Compromised . | . . . . . . . . . . Overloaded Fab Kills . | . . . . . . . . . . Hacking | -11 -10 -10 -10 -9 -8 -7 -7 -7 -7 --------- Run | Scr Mat Min Exi Min Mat Fac Low Low Dat Machines Accessed 20 | . 5 2 . . 7 2 . . 4 Terminals 14 | . 4 1 . . 7 2 . . . Fabricators . | . . . . . . . . . . Repair Stations . | . . . . . . . . . . Recycling Units 1 | . 1 . . . . . . . . Scanalyzers . | . . . . . . . . . . Garrison Access . | . . . . . . . . . . Total Hacks 67 | . 13 2 . . 19 4 . . 29 Successful 48 | . 6 2 . . 10 1 . . 29 Failed 19 | . 7 . . . 9 3 . . . Catastrophic 2 | . . . . . 1 1 . . . Database Lockouts . | . . . . . . . . . . Manual 24 | . 7 . . . 13 4 . . . Terminals 32 | . 8 1 . . 19 4 . . . Fabricators . | . . . . . . . . . . Repair Stations . | . . . . . . . . . . Recycling Units 5 | . 5 . . . . . . . . Scanalyzers . | . . . . . . . . . . Garrison Access . | . . . . . . . . . . Terminal Hacks 41 | . 2 2 . . 8 . . . 29 Record 11 | . . . . . . . . . 11 Part Schematic 10 | . . . . . . . . . 10 Robot Schematic 5 | . . . . . . . . . 5 Robot Analysis 1 | . . . . . 1 . . . . Prototype ID Bank 5 | . . . . . 2 . . . 3 Open Door 1 | . . 1 . . . . . . . Level Access Points 1 | . 1 . . . . . . . . Unreport Threat 2 | . 1 . . . 1 . . . . Locate Traps 1 | . . . . . 1 . . . . Zone Layout 4 | . . 1 . . 3 . . . . Fabricator Hacks . | . . . . . . . . . . Repair Station Hacks . | . . . . . . . . . . Recycling Unit Hacks . | . . . . . . . . . . Scanalyzer . | . . . . . . . . . . Garrison Access Hacks . | . . . . . . . . . . Unauthorized Hacks 7 | . 4 . . . 2 1 . . . Terminals 5 | . 2 . . . 2 1 . . . Botnet 5 | . 2 . . . 2 1 . . . Fabricators . | . . . . . . . . . . Repair Stations . | . . . . . . . . . . Recycling Units 2 | . 2 . . . . . . . . Monitor 1 | . 1 . . . . . . . . Mask 1 | . 1 . . . . . . . . Scanalyzers . | . . . . . . . . . . Garrison Access . | . . . . . . . . . . Data Cores Recovered 1 | . . . . . . 1 . . . Used 1 | . . . . . . 1 . . . Hacking Detections 14 | . 5 1 . . 6 2 . . . Full Trace Events . | . . . . . . . . . . Feedback Events . | . . . . . . . . . . Feedback Blocked . | . . . . . . . . . . Robot Schematics Acquired 5 | . . . . . . . . . 5 Robots Built . | . . . . . . . . . . Authchips . | . . . . . . . . . . Time . | . . . . . . . . . . Total Robot Build Rating . | . . . . . . . . . . Part Schematics Acquired 10 | . . . . . . . . . 10 Parts Built . | . . . . . . . . . . Authchips . | . . . . . . . . . . Time . | . . . . . . . . . . Total Part Build Rating . | . . . . . . . . . . Parts Repaired . | . . . . . . . . . . Time . | . . . . . . . . . . Parts Recycled . | . . . . . . . . . . Recycled Matter . | . . . . . . . . . . Retrieved Matter . | . . . . . . . . . . Retrieved Components . | . . . . . . . . . . Parts Scanalyzed . | . . . . . . . . . . Part Schematics Acquired . | . . . . . . . . . . Parts Damaged . | . . . . . . . . . . Bothacking | -11 -10 -10 -10 -9 -8 -7 -7 -7 -7 ------------ Run | Scr Mat Min Exi Min Mat Fac Low Low Dat Used RIF Installer . | . . . . . . . . . . Robots Hacked . | . . . . . . . . . . Non-combat . | . . . . . . . . . . Combat . | . . . . . . . . . . Robot Hacks Applied . | . . . . . . . . . . Relay Couplers Released . | . . . . . . . . . . Fabnet Peak Effective % . | . . . . . . . . . . Robots Rewired . | . . . . . . . . . . Allies Hacked . | . . . . . . . . . . Hacks Repelled . | . . . . . . . . . . Allies | -11 -10 -10 -10 -9 -8 -7 -7 -7 -7 -------- Run | Scr Mat Min Exi Min Mat Fac Low Low Dat Total Allies 6 | . . 3 . 3 . . . . . Largest Group 3 | . . 2 2 3 3 . . . . Highest-Rated Group 62 | . . 62 62 40 40 . . . . Highest-Rated Ally 31 | . . 31 31 16 16 . . . . Total Orders . | . . . . . . . . . . Ally Attacks 67 | . . 27 . 13 27 . . . . Total Damage 791 | . . 354 . 86 351 . . . . Kills 15 | . . 7 . 3 5 . . . . Allies Corrupted . | . . . . . . . . . . Allies Melted . | . . . . . . . . . . Intel | -11 -10 -10 -10 -9 -8 -7 -7 -7 -7 ------- Run | Scr Mat Min Exi Min Mat Fac Low Low Dat Robot Analysis Total 129 | . . . . . 1 . . . 128 Derelict Logs Recovered 4 | . . 1 . . . . 3 . . Drone Launches . | . . . . . . . . . . Drone Recoveries . | . . . . . . . . . . Exploration | -11 -10 -10 -10 -9 -8 -7 -7 -7 -7 ------------- Run | Scr Mat Min Exi Min Mat Fac Low Low Dat Turns Passed 8787 | 82 533 805 671 957 1221 431 1813 1911 363 Spaces Moved 4558 | 42 274 606 379 494 579 190 871 959 164 Core 37 | 25 . . . . . . . . 12 Treads 353 | 17 193 . . . 1 99 34 9 . Legs 2275 | . 81 606 379 494 578 91 . . 46 Wheels 1893 | . . . . . . . 837 950 106 Hover . | . . . . . . . . . . Flight . | . . . . . . . . . . Fastest Speed 50 | 50 120 120 120 190 190 158 155 110 50 Average Speed 154 | 157 148 120 174 190 190 203 158 119 146 Slowest Speed 385 | 200 160 120 190 190 320 238 385 237 275 Overloaded Moves . | . . . . . . . . . . Propulsion Burnouts . | . . . . . . . . . . Robots Hopped . | . . . . . . . . . . Cave-ins Triggered . | . . . . . . . . . . Exploration Rate (%) 65 | 5 72 99 69 89 48 5 92 94 79 Regions Visited 9 Branch Regions 6 Pre-discovered Areas 26 | . . 1 . . . . . . 25 Known Exits Taken . | . . . . . . . . . . Unknown Exits Taken 9 | 1 1 1 1 1 1 1 1 1 . Scrap Searched 9 | . . 1 . 1 . . 2 5 . Spaces Dug 1 | . . 1 . . . . . . . Terrain Destroyed 10 | . . 1 . . 9 . . . . Melee 1 | . . 1 . . . . . . . Projectile . | . . . . . . . . . . AOE 9 | . . . . . 9 . . . . Terrain Rammed . | . . . . . . . . . . Walls Destroyed . | . . . . . . . . . . Machines Disabled . | . . . . . . . . . . Actions | -11 -10 -10 -10 -9 -8 -7 -7 -7 -7 --------- Run | Scr Mat Min Exi Min Mat Fac Low Low Dat Total 6066 | 57 343 660 389 506 674 217 1234 1701 285 Wait 1148 | . 28 24 . 4 15 2 298 686 91 Move 4549 | 41 273 605 378 493 578 189 870 958 164 Hop . | . . . . . . . . . . Pick Up 78 | 10 3 5 6 3 30 2 10 8 1 Fast Attach 24 | 2 5 3 . . 2 3 4 5 . Attach 21 | 4 2 . . . 5 . 7 2 1 Detach 2 | . . . . . . . . 2 . Swap 45 | . 1 1 3 2 6 4 3 17 8 Drop 65 | . . 8 2 . 22 3 6 12 12 Fire 119 | . 31 10 . 2 16 14 36 10 . Melee 4 | . . 4 . . . . . . . Ram . | . . . . . . . . . . Kick 5 | . . . . 2 . . . . 3 Crush . | . . . . . . . . . . Escape Stasis . | . . . . . . . . . . Rewire . | . . . . . . . . . . Trap 6 | . . . . . . . . 1 5 Miscellaneous . | . . . . . . . . . . Route ------- -11/Scrapyard -10/Materials (discovered 5 exits: *Mat x3 / *Min x2) -10/Mines (discovered 3 exits: *Mat x2 / [*Exi]) -10/Exiles (discovered 2 exits: [*Min x2]) -9/Mines (discovered 2 exits: *Mat x2) -8/Materials (discovered 2 exits: *Fac / [*Sto]) -7/Factory -7/Lower Caves -7/Lower Caves (discovered 2 exits: [*Fac] / *Dat) -7/Data Miner (discovered 1 exit: [*Pro]) History --------- Turn | Location | Event 13 | -11/Scrapyard | Discovered new exit (range 15) 83 | -11/Scrapyard | Entered Materials 87 | -10/Materials | Identified exit to Materials 173 | -10/Materials | Discovered new exit (range 16) 307 | -10/Materials | Build established: Mutant 574 | -10/Materials | Discovered new exit (range 15) 616 | -10/Materials | Entered Mines 638 | -10/Mines | Met a Derelict bent on vengeance 696 | -10/Mines | Found the Drone Emporium 701 | -10/Mines | Found Prototype Device 756 | -10/Mines | Discovered exit to Materials (range 8) 826 | -10/Mines | Discovered exit to Materials (range 15) 839 | -10/Mines | Deemed a non-threat by the Exiles lab entrance 841 | -10/Mines | Discovered new exit (range 5) 900 | -10/Mines | Escorted by a lone wolf Derelict 1234 | -10/Mines | Learned location of Storage (-8) 1421 | -10/Mines | Entered Exiles 1421 | -10/Exiles | Accompanied by 2 allies 1439 | -10/Exiles | Discovered new exit (range 15) 1451 | -10/Exiles | Led the pair of lost Derelicts to a safe place 1460 | -10/Exiles | Met 8R-AWN 1480 | -10/Exiles | Met EX-HEX 1564 | -10/Exiles | Met EX-DEC 1599 | -10/Exiles | Visited The Gauntlet 1807 | -10/Exiles | Discovered new exit (range 14) 1931 | -10/Exiles | Met EX-BIN 2092 | -10/Exiles | Entered Mines 2096 | -9/Mines | Assisted by bots powering up and referring to "LRC-V3" 2114 | -9/Mines | Assembled infested the area 2119 | -9/Mines | Assisted by a Guerilla fighting off Assembled 2386 | -9/Mines | Discovered new exit (range 6) 2780 | -9/Mines | Discovered new exit (range 11) 3049 | -9/Mines | Entered Materials 3049 | -8/Materials | Accompanied by 3 allies 3049 | -8/Materials | Evolved 4 slots: Propulsion x2, Utility x2 3349 | -8/Materials | Build established: Scavenger-Mutant 3944 | -8/Materials | Discovered new exit (range 11) 4016 | -8/Materials | Discovered new exit (range 11) 4270 | -8/Materials | Entered Factory 4270 | -7/Factory | Evolved 2 slots: Utility x2 4361 | -7/Factory | Build established: Mutant 4466 | -7/Factory | Discovered new exit (range 5) 4701 | -7/Factory | Entered Lower Caves 4706 | -7/Lower Caves | Lost 4 parts (2n2w) 4758 | -7/Lower Caves | Lost 4 parts (1p1u2w) 4891 | -7/Lower Caves | Spotted B-75 Beast 5274 | -7/Lower Caves | Learned Factory terminal intel 5280 | -7/Lower Caves | Learned Factory trap positions 5282 | -7/Lower Caves | Learned Factory stockpile data 5493 | -7/Lower Caves | Encountered a Warlord checkpoint 5894 | -7/Lower Caves | Discovered new exit (range 6) 6514 | -7/Lower Caves | Entered another Lower Caves area 6668 | -7/Lower Caves | Discovered new exit (range 13) 7628 | -7/Lower Caves | Attracted the attention of an 0b10 checkpoint 8075 | -7/Lower Caves | Discovered new exit (range 14) 8425 | -7/Lower Caves | Entered Data Miner 8425 | -7/Data Miner | Discovered new exit (range 7) 8449 | -7/Data Miner | Met Data Miner 8514 | -7/Data Miner | Build established: Derelict-Mutant 8596 | -7/Data Miner | Received God Mode back door access code from Data Miner 8606 | -7/Data Miner | Learned location of Section 7 (-2) 8606 | -7/Data Miner | Acquired the access code to Warlord's prototype stash 8736 | -7/Data Miner | Interfaced with the Data Conduit 8780 | -7/Data Miner | Core integrity fell below 50% 8785 | -7/Data Miner | Core integrity fell below 20% 8788 | -7/Data Miner | Destroyed by Enhanced Grunt with Neutron Cannon Last Messages --------------- 08757_ Aluminum Leg destroyed. 08766_ Kicked Enhanced Grunt. 08766_ Enhanced Grunt reactivates. 08768_ Hpw. Shotgun destroyed. 08769_ Kicked Enhanced Grunt out of the way. 08769_ Hrd. Medium Armor Plating destroyed. 08775_ Wheel destroyed. 08775_ Mak. Leg destroyed. 08775_ Arm. Treads destroyed. 08775_ Dropped Hpw. Shotgun. 08776_ Dropped Neutrino Core. 08776_ Dropped Wheel. 08777_ Dropped Plasma Cannon. 08777_ Hrd. Medium Armor Plating destroyed. 08778_ Dropped Prc. Beam Rifle. 08778_ Targeting Computer destroyed. 08778_ Dropped Hcp. Storage Unit. 08780_ Dropped Prc. Beam Rifle. 08780_ Acquired Huge Storage Unit. 08782_ Titanium Leg destroyed. Map ----- +----------------------------------------------------+ | | | | | | | | | | | | | | | | | | | | | | | | | | | | | | | | | | | ??#?###?######?#############?###????#?????# | | #??######################?#?#???#?###?????? | | ###?################???#?######??#??#?????? | | #####?##?#########################??####??? | | ############################?#####?#???#??? | | ############################### ###?#???#? | | """""""""""""###### # ; # ### ####?????? | | """""" """""" ; ; ; ; ## < ##?????#??? | | """""" @ #######??? | | """ ^ #?##? | | """ g #?### | | "" #?#?? | | """ [g[ g ##???? | | """ / g!* """"""""#######??# | | """" *[[*" " ###############??#?#?#?? | | """" "]"""#####?#?########?##?##???? | | """""" "###############?#?##??##?#???? | | #####"## "###############?##?##???#?#??? | | #####"### "###############?###?#?#?????#? | | #####"### "######?##########??#?#?#??#?#? | | #####"## "#################?#?##?#???##? | | #####"## "##############?#####???#?????? | | """##"# "#############?#??##?###?????#? | | """##"#"# "############?#?##?#????#?#???# | | """##"# # "#############???####?????????? | | """##"### ""############??????#?????????? | | """##"## ""###?#######?????????????????? | | ##"##"#"X ""############????????????????? | | ##"""""" "###########?????????????????? | | ###""""" X"""""#?#####?#???????????????? | | #####"#"X "##"#####?##?????????????????? | | #####"## X""""########?????????????????? | | #####"### "##"#########????????????????? | +----------------------------------------------------+ Best States ------------- Heat Dissipation 34 Energy Generation 19 Energy Capacity 315 Matter Stores 300 Matter Capacity 300 Sight Range 16 Terrain Scan Range 16 Terrain Scan Density 210 EM Shielding 2 Armor Coverage 450 Core Shielding 20 Propulsion Shielding 33 Evasion (%) 55 Targeting Accuracy 11 Core Analysis 6 Recoil Reduction 3 Energy Filtering 30 Offensive Hacking 10 Item Schematics ----------------- Combat Drone Bay | -7/Data Miner | Free Lgt. Regenerative Plating | -7/Data Miner | Free Biomechanical Wings | -7/Data Miner | Free Exp. Targeting Computer | -7/Data Miner | Free Imp. Heavy Machine Gun | -7/Data Miner | Free Antigrav System | -7/Data Miner | Free Adv. Cooling System | -7/Data Miner | Free Imp. Remote Datajack | -7/Data Miner | Free Energy Well | -7/Data Miner | Free Imp. Corruption Screen | -7/Data Miner | Free Robot Schematics ------------------ H-66 Slayer | -7/Data Miner | Free L-41 Fighter | -7/Data Miner | Free M-22 Extractor | -7/Data Miner | Free S-27 Virus | -7/Data Miner | Free A-15 Conveyor | -7/Data Miner | Free Fabricated ------------ Nothing Alien Tech Used ----------------- None Achievements -------------- None Challenges ------------ None Game ------ Seed AccelerationCompactDetonator Manual? 0 Play Time 00:57:51 Cumulative 159.9 hours Start 2022.03.25 @ 05:20:59 End 2022.03.25 @ 06:25:23 Sessions 1 Manual Loads 0 Difficulty Rogue Special Mode None Game No. 43 Rogue 43 Adventurer 0 Explorer 0 Win Type - Total 12 Types 7/2/1/1/1/0/0/0/0 Lore% 45 Gallery% 70 Achievement% 60 Wizard Run 0 Options --------- ASCII 0 Keyboard 0 Movement Numpad Keybinds 0 Fullscreen 1 Font 18/TerminusBold Map View 76x50 Tactical HUD 1 Map Filters NONE Filters NONE Steam 1 RUN: c376b59e-504a-4223-8c59-6d800a434591